Cogmind - Beta 14 @@@ ROGUE MODE // 2024.08.07 @ 09:59:53 // Winter2019/RPGLIKE Player: Bulbasornado Result: Self-destructed Performance ------------- Evolutions (2) 1000 Regions Visited (4) 800 Robots Destroyed (109) 545 Value Destroyed (2921) 2921 Prototype IDs (20) 400 Alien Tech Used (0) 0 Bonus (481) 481 TOTAL SCORE: 6147 Bonus ------- High Alert Combat Kills 622 Friendly Fire -141 Cogmind --------- Core Integrity 566/600 Matter 290/300 Energy 174/180 System Corruption 5% Temperature Cool (0) Movement Flying (31) Location -8/Materials Parts ------- > --- POWER (1) -------- Meta Core > --- PROPULSION (3+1) - Flight Unit Flight Unit Flight Unit Flight Unit (+) > --- UTILITY (4+1) ---- Advanced Heat Sink Targeting Computer Hacking Suite Hacking Suite > --- WEAPON (4+1) ----- Field Laser Enhanced Autogun Enhanced Autogun Enhanced Autogun > --- INVENTORY (0) ---- (None) Peak State ------------ > --- POWER ------------ Meta Core > --- PROPULSION ------- Flight Unit Flight Unit Flight Unit Flight Unit > --- UTILITY ---------- Advanced Heat Sink Targeting Computer Hacking Suite Hacking Suite > --- WEAPON ----------- Field Laser Enhanced Autogun Enhanced Autogun Enhanced Autogun > --- INVENTORY -------- (None) [Rating: 44] Favorites ----------- Power Light Ion Engine Engine Light Ion Engine Power Core Meta Core Propulsion Flight Unit Treads Light Treads Hover Unit Improved Hover Unit Flight Unit Flight Unit Utility Targeting Computer Device Improved Heat Sink Processor Targeting Computer Hackware Hacking Suite Weapon Light Cannon Energy Gun Medium Laser Energy Cannon Subdweller Beam Cannon Ballistic Gun Enhanced Autogun Ballistic Cannon Light Cannon Special Weapon Mining Laser Build | -11 -10 -10 -10 -8 ------- Run | Yrd Mat Min Sub Mat Slots Evolved 8 | 2 4 . 1 1 Power . | . . . . . Propulsion 2 | 1 . . 1 . Utility 3 | . 3 . . . Weapon 3 | 1 1 . . 1 Parts Attached 48 | 5 19 2 9 13 Power 3 | 1 1 . 1 . Engine 2 | 1 1 . . . Core 1 | . . . 1 . Reactor . | . . . . . Propulsion 12 | 2 4 2 1 3 Treads 2 | 2 . . . . Leg . | . . . . . Wheel . | . . . . . Hover 1 | . 1 . . . Flight 9 | . 3 2 1 3 Utility 10 | . 6 . 2 2 Device 6 | . 3 . 2 1 Storage . | . . . . . Processor 2 | . 2 . . . Hackware 2 | . 1 . . 1 Protection . | . . . . . Artifact . | . . . . . Weapon 23 | 2 8 . 5 8 Energy Gun 6 | 1 1 . . 4 Energy Cannon 2 | . . . 2 . Ballistic Gun 8 | 1 2 . 1 4 Ballistic Cannon 6 | . 4 . 2 . Launcher . | . . . . . Special Weapon 1 | . 1 . . . Impact Weapon . | . . . . . Slashing Weapon . | . . . . . Piercing Weapon . | . . . . . Special Melee Weapon . | . . . . . Unidentified Prototypes 2 | . . . . 2 Parts Lost . | . . . . . Power . | . . . . . Propulsion . | . . . . . Utility . | . . . . . Weapon . | . . . . . Highest Loss Streak . | . . . . . To Critical Strikes . | . . . . . Average Slot Usage (%) 94 | . 98 100 91 79 Engine 9 | . 12 10 6 . Core 1 | . . . 2 6 Treads 4 | . 10 . . . Flight 17 | . 14 20 19 20 Device 8 | . 9 10 8 6 Processor 12 | . 7 20 17 10 Hackware 6 | . 4 10 8 8 Energy Gun 8 | . 14 10 . 4 Energy Cannon 2 | . . . 6 1 Ballistic Gun 4 | . 4 . 2 16 Ballistic Cannon 15 | . 15 20 16 1 Peak Build Rating 44 | 5 15 14 33 44 Average Rating 16 | 3 9 14 21 38 On Entrance 13 | . 5 14 14 33 Naked Turns . | . . . . . Heaviest Build 21 | 7 13 12 21 21 Greatest Support 26 | 8 18 18 26 26 Greatest Overweight (x) 1 | . . . 1 . Average Overweight (x) . | . . . . . Largest Inventory Capacity . | . . . . . Average Capacity . | . . . . . Most Carried . | . . . . . Average Carried . | . . . . . Final Capacity . | . . . . . Final Carried . | . . . . . Class Distribution -------------------- 90% | Hacker-Gunner 8% | Hacker-Mutant Dominant Class ---------------- Hacker-Gunner | -10/Materials Hacker-Gunner | -10/Mines Hacker-Gunner | -10/Subcaves Hacker-Gunner | -8/Materials Resources | -11 -10 -10 -10 -8 ----------- Run | Yrd Mat Min Sub Mat Matter Collected 2901 | 250 1106 272 890 383 Remotely . | . . . . . Salvage Created 3174 | . 1610 546 515 503 Parts 212 | . 111 26 35 40 Haulers Intercepted 3 | . 2 . . 1 Recyclers Shooed 4 | . 1 3 . . Parts Field Recycled . | . . . . . Retrieved Matter . | . . . . . Parts Self-Destructed 3 | . . . 3 . Prevented . | . . . . . Kills | -11 -10 -10 -10 -8 ------- Run | Yrd Mat Min Sub Mat Combat Hostiles Destroyed 85 | . 43 10 19 13 Guns 35 | . 21 1 3 10 Cannons 48 | . 21 9 15 3 AOE 1 | . 1 . . . Classes Destroyed 13 | . 9 . 4 . Worker 11 | . 10 1 . . Builder 1 | . 1 . . . Hauler 3 | . 2 . . 1 Recycler 9 | . 2 7 . . Operator 3 | . 2 . . 1 Turret 2 | . . . 2 . Watcher 4 | . 3 . . 1 Swarmer 22 | . 5 6 4 7 Grunt 42 | . 35 4 . 3 Sentry 4 | . . . 1 3 Artisan 1 | . . . 1 . Subdweller 17 | . 3 . 14 . Zionite 2 | . . . 2 . Best Kill Streak 7 | . 5 7 6 6 Combat Bots Only 7 | . 5 7 4 5 Max Kills in Single Turn 2 | . 2 2 2 2 Gunslinging 1 | . 1 . . 1 Exploded 1 | . 1 . . . Melee . | . . . . . Uniques/NPCs Destroyed . | . . . . . Combat | -11 -10 -10 -10 -8 -------- Run | Yrd Mat Min Sub Mat Hostile Shots Fired 321 | . 152 33 97 39 Missed 119 | . 48 12 44 15 Damage Taken 2652 | . 1357 228 803 264 Core 2184 | . 1122 175 680 207 Absorbed by Shields . | . . . . . Redirected to Core 1558 | . 782 163 431 182 Core Remaining (%) 80 | 100 . . 61 . Volleys Fired 444 | . 259 46 111 28 Largest 4 | . 3 3 3 4 Hottest 185 | . 185 120 150 143 Shots Fired 929 | . 508 96 244 81 Gun 481 | . 325 33 54 69 Cannon 438 | . 173 63 190 12 Launcher . | . . . . . Special 10 | . 10 . . . Kinetic 574 | . 250 63 202 59 Thermal 355 | . 258 33 42 22 Explosive . | . . . . . Electromagnetic . | . . . . . Robot Hit Streak 74 | . 74 25 37 20 Robot Miss Streak 3 | . 3 2 2 2 Penetration Max . | . . . . . Secondary Targets 5 | . 3 . . 2 Max Gunslinging Chain 1 | . 1 . . 1 Shots Hit Robots 471 | . 238 61 122 50 Core Hits 181 | . 94 29 37 21 Critical Kills 1 | . . . 1 . Critical Parts Destroyed . | . . . . . Critical Strikes 21 | . 9 6 4 2 Burn 9 | . 5 2 . 2 Meltdown 1 | . . . 1 . Blast 11 | . 4 4 3 . Melee Attacks . | . . . . . Impact . | . . . . . Slashing . | . . . . . Piercing . | . . . . . Sneak Attacks . | . . . . . Combat Hostiles . | . . . . . Follow-up Attacks . | . . . . . Damage Inflicted 8116 | . 3709 1002 2409 996 Guns 3549 | . 2209 331 255 754 Cannons 4383 | . 1316 671 2154 242 Explosions 184 | . 184 . . . Melee . | . . . . . Ramming . | . . . . . Kinetic 4721 | . 1975 671 1441 634 Thermal 3315 | . 1654 331 968 362 Explosive 80 | . 80 . . . Electromagnetic . | . . . . . Impact . | . . . . . Slashing . | . . . . . Piercing . | . . . . . Highest Corruption 5 | . . . . 5 Average Corruption 5 | . . . . 5 Corruption Purged . | . . . . . Corruption Blocked . | . . . . . Effects 3 | . . . . 3 Message Errors 1 | . . . . 1 Matter Fused 1 | . . . . 1 Data Loss (minor) 1 | . . . . 1 Overload Shots . | . . . . . Overflow Damage 156 | . 53 17 25 61 Projectiles 120 | . 17 17 25 61 Explosions 36 | . 36 . . . Melee . | . . . . . Knockbacks 39 | . 10 11 17 1 Impact . | . . . . . Kinetic 37 | . 10 9 17 1 Secondary 2 | . . 2 . . Self-Inflicted Damage 156 | . 156 . . . Shots 2 | . 2 . . . Rammed . | . . . . . Targets Rammed . | . . . . . Kicked . | . . . . . Crushed . | . . . . . Highest Temperature 291 | . 291 105 4 224 Average Temperature 48 | . 51 27 2 60 Received Heat Transfer 909 | . 576 105 138 90 Effects 4 | . 2 . . 2 Energy Bleed 1 | . 1 . . . Interference 3 | . 1 . . 2 Siege Activations . | . . . . . Robots Corrupted . | . . . . . Combat Hostiles . | . . . . . Parts Fried . | . . . . . Impact Corruptions . | . . . . . Robots Melted 1 | . . . 1 . Combat Hostiles 1 | . . . 1 . Parts Melted 12 | . 9 1 1 1 Heat Transferred 7913 | . 4694 1110 1369 740 Parts Sabotaged . | . . . . . Parts Stolen . | . . . . . Parts Stripped . | . . . . . Power Chain Reactions . | . . . . . Alert | -11 -10 -10 -10 -8 ------- Run | Yrd Mat Min Sub Mat Peak Influence 1321 | . 1321 845 . 284 Initial 514 | . . 514 . . Average 710 | . 816 673 . 139 Maximum Alert Level 4 | . 4 3 . 1 Low Security (%) 13 | 100 6 . . 73 Level 1 17 | . 21 . . 26 Level 2 20 | . 11 70 . . Level 3 21 | . 22 29 . . Level 4 27 | . 38 . . . Level 5 . | . . . . . High Security . | . . . . . Max Security . | . . . . . Squads Dispatched 13 | . 13 . . . Investigation 11 | . 11 . . . Extermination . | . . . . . Reinforcement 2 | . 2 . . . Assault . | . . . . . Garrison . | . . . . . Intercept . | . . . . . Searches Triggered . | . . . . . Construction Impeded . | . . . . . Haulers Reinforced . | . . . . . Active Scanning Responses . | . . . . . Cargo Convoy Interrupts . | . . . . . Stealth | -11 -10 -10 -10 -8 --------- Run | Yrd Mat Min Sub Mat Distress Signals 1 | . 1 . . . Communications Jammed . | . . . . . Distress Signals . | . . . . . Times Spotted 89 | . 47 9 20 13 Peak Tracking Total 5 | . 4 5 4 5 Tactical Retreats 2 | . 1 . 1 . Traps | -11 -10 -10 -10 -8 ------- Run | Yrd Mat Min Sub Mat Traps Triggered 2 | . 2 . . . Indirectly . | . . . . . Trap Hack Attempts . | . . . . . Triggered . | . . . . . Disarmed . | . . . . . Reprogrammed . | . . . . . Reused . | . . . . . Traps Extracted . | . . . . . Installed . | . . . . . Triggered . | . . . . . Machines | -11 -10 -10 -10 -8 ---------- Run | Yrd Mat Min Sub Mat Machines Disabled 44 | . 32 4 3 5 Max in Single Turn 3 | . 3 1 1 1 Machines Repaired . | . . . . . Machines Dismantled . | . . . . . Machines Sabotaged . | . . . . . Overloaded Fab Kills . | . . . . . Hacking | -11 -10 -10 -10 -8 --------- Run | Yrd Mat Min Sub Mat Machines Accessed 18 | . 9 . 2 7 Terminals 13 | . 6 . . 7 Fabricators . | . . . . . Repair Stations 1 | . 1 . . . Recycling Units 2 | . 2 . . . Scanalyzers . | . . . . . Garrison Access . | . . . . . Total Hacks 112 | . 47 . 13 52 Successful 80 | . 29 . 13 38 Failed 30 | . 17 . . 13 Catastrophic 1 | . . . . 1 Database Lockouts 2 | . 1 . . 1 Manual 78 | . 33 . . 45 Terminals 89 | . 37 . . 52 Fabricators . | . . . . . Repair Stations 4 | . 4 . . . Recycling Units 6 | . 6 . . . Scanalyzers . | . . . . . Garrison Access . | . . . . . Terminal Hacks 42 | . 10 . 13 19 Record 12 | . . . 12 . Robot Analysis 11 | . 3 . . 8 Prototype ID Bank 4 | . 3 . . 1 Machine Index 1 | . . . . 1 Alert Level 4 | . 1 . . 3 Unreport Threat 2 | . . . . 2 Locate Traps 6 | . 3 . . 3 Registered Prototypes 1 | . . . . 1 Derelict Proto ID Bank 1 | . . . 1 . Fabricator Hacks . | . . . . . Repair Station Hacks . | . . . . . Recycling Unit Hacks 2 | . 2 . . . Retrieve Components 2 | . 2 . . . Scanalyzer . | . . . . . Garrison Access Hacks . | . . . . . Unauthorized Hacks 35 | . 16 . . 19 Terminals 33 | . 14 . . 19 Track 8 | . 3 . . 5 Botnet 11 | . 4 . . 7 Disrupt 8 | . 3 . . 5 Operators 4 | . 2 . . 2 Search 2 | . 2 . . . Fabricators . | . . . . . Repair Stations . | . . . . . Recycling Units 2 | . 2 . . . Tunnel 2 | . 2 . . . Scanalyzers . | . . . . . Garrison Access . | . . . . . Data Cores Recovered 1 | . . . . 1 Used . | . . . . . Hacking Detections 12 | . 6 . . 6 Full Trace Events 5 | . 5 . . . Feedback Events . | . . . . . Feedback Blocked . | . . . . . Robot Schematics Acquired . | . . . . . Robots Built . | . . . . . Authchips . | . . . . . Time . | . . . . . Total Robot Build Rating . | . . . . . Part Schematics Acquired . | . . . . . Parts Built . | . . . . . Authchips . | . . . . . Time . | . . . . . Total Part Build Rating . | . . . . . Parts Repaired . | . . . . . Time . | . . . . . Parts Recycled . | . . . . . Recycled Matter . | . . . . . Retrieved Matter . | . . . . . Retrieved Components 18 | . 18 . . . Parts Scanalyzed . | . . . . . Part Schematics Acquired . | . . . . . Parts Damaged . | . . . . . Bothacking | -11 -10 -10 -10 -8 ------------ Run | Yrd Mat Min Sub Mat Used RIF Installer . | . . . . . Robots Hacked . | . . . . . Non-combat . | . . . . . Combat . | . . . . . Robot Hacks Applied . | . . . . . Relay Couplers Released . | . . . . . Fabnet Peak Effective % . | . . . . . Robots Rewired . | . . . . . Allies Hacked . | . . . . . Hacks Repelled . | . . . . . Allies | -11 -10 -10 -10 -8 -------- Run | Yrd Mat Min Sub Mat Total Allies . | . . . . . Largest Group . | . . . . . Highest-Rated Group . | . . . . . Highest-Rated Ally . | . . . . . Total Orders . | . . . . . Ally Attacks . | . . . . . Total Damage . | . . . . . Kills . | . . . . . Allies Corrupted . | . . . . . Allies Melted . | . . . . . Intel | -11 -10 -10 -10 -8 ------- Run | Yrd Mat Min Sub Mat Robot Analysis Total 11 | . 3 . . 8 Derelict Logs Recovered 3 | . . 1 2 . Drone Launches . | . . . . . Drone Recoveries . | . . . . . Exploration | -11 -10 -10 -10 -8 ------------- Run | Yrd Mat Min Sub Mat Turns Passed 4607 | 23 2093 511 1652 328 Spaces Moved 5857 | 28 2192 996 2066 575 Core 155 | 28 109 . 18 . Treads . | . . . . . Legs . | . . . . . Wheels . | . . . . . Hover . | . . . . . Flight 5702 | . 2083 996 2048 575 Fastest Speed 34 | 50 37 37 37 34 Average Speed 40 | 50 46 37 38 34 Slowest Speed 100 | 50 60 37 100 39 Overloaded Moves . | . . . . . Propulsion Burnouts . | . . . . . Robots Hopped 52 | . 21 17 1 13 Cave-ins Triggered . | . . . . . Exploration Rate (%) 65 | 4 100 99 78 45 Regions Visited 4 Branch Regions 2 Pre-discovered Areas 7 | . 2 2 3 . Known Exits Taken . | . . . . . Unknown Exits Taken 4 | 1 1 1 1 . Scrap Searched 9 | . . 1 8 . Spaces Dug . | . . . . . Terrain Destroyed 252 | . 231 16 5 . Melee . | . . . . . Projectile 5 | . . . 5 . AOE 247 | . 231 16 . . Terrain Rammed . | . . . . . Walls Destroyed . | . . . . . Machines Disabled . | . . . . . Actions | -11 -10 -10 -10 -8 --------- Run | Yrd Mat Min Sub Mat Total 7240 | 34 2791 1043 2724 648 Wait 789 | 2 263 . 508 16 Move 5751 | 27 2150 961 2063 550 Hop 50 | . 20 17 1 12 Pick Up . | . . . . . Fast Attach 44 | 5 17 . 9 13 Attach . | . . . . . Detach 1 | . . . . 1 Swap 4 | . 2 2 . . Drop 34 | . 14 2 8 10 Fire 444 | . 259 46 111 28 Melee . | . . . . . Ram . | . . . . . Kick . | . . . . . Crush . | . . . . . Escape Stasis . | . . . . . Rewire . | . . . . . Trap . | . . . . . Miscellaneous 123 | . 66 15 24 18 Route ------- -11/Scrapyard -10/Materials (discovered 6 exits: [*Mat x3] / [*Min x2] / *Sub) -10/Mines (discovered 4 exits: [*Mat x2] / [*Exi] / *Sub) -10/Subcaves (discovered 3 exits: *Mat x2 / [*Rec]) -8/Materials (discovered 1 exit: [*Fac]) History --------- Turn | Location | Event 1 | -11/Scrapyard | Upgraded with Propulsion slot (x1) 1 | -11/Scrapyard | Upgraded with Weapon slot (x1) 10 | -11/Scrapyard | Discovered new exit (range 16) 24 | -11/Scrapyard | Entered Materials 159 | -10/Materials | Central database locked down 336 | -10/Materials | Build established: Hacker-Mutant 398 | -10/Materials | Reached level 2 398 | -10/Materials | Upgraded with Weapon slot (x1) 583 | -10/Materials | Discovered new exit (range 16) 646 | -10/Materials | Reached level 3 697 | -10/Materials | Build established: Hacker-Gunner 884 | -10/Materials | Discovered new exit (range 6) 909 | -10/Materials | Discovered new exit (range 8) 934 | -10/Materials | Reached level 4 1064 | -10/Materials | Discovered new exit (range 15) 1217 | -10/Materials | Discovered new exit (range 16) 1286 | -10/Materials | Reached level 5 1324 | -10/Materials | Derelicts attacked the area 1337 | -10/Materials | Upgraded with Utility slot (x1) 1351 | -10/Materials | Upgraded with Utility slot (x1) 1745 | -10/Materials | Discovered new exit (range 9) 2062 | -10/Materials | Reached level 6 2068 | -10/Materials | Upgraded with Utility slot (x1) 2117 | -10/Materials | Entered Mines 2141 | -10/Mines | A weapon hastily lodged in a ceiling crevice suddenly fell to the ground 2172 | -10/Mines | Discovered new exit (range 16) 2257 | -10/Mines | Deemed a non-threat by the Exiles lab entrance 2257 | -10/Mines | Discovered new exit (range 5) 2293 | -10/Mines | Found DCF Scrap (13 items) 2422 | -10/Mines | Destroyed 7 combat bots 2488 | -10/Mines | Learned location of Storage (-7) 2525 | -10/Mines | Discovered new exit (range 5) 2626 | -10/Mines | Discovered new exit (range 6) 2628 | -10/Mines | Entered Subcaves 2631 | -10/Subcaves | Learned location of Zion (-7) 2631 | -10/Subcaves | Met a Zionite searching for "candidates" 2645 | -10/Subcaves | Reached level 7 2721 | -10/Subcaves | Disturbed a concealed Subdweller 2771 | -10/Subcaves | Shifting Twisted Machinery released Flamer 3270 | -10/Subcaves | Shifting Twisted Machinery released Mak. Laser 3462 | -10/Subcaves | Discovered new exit (range 7) 3583 | -10/Subcaves | Upgraded with Propulsion slot (x1) 3583 | -10/Subcaves | Discovered new exit (range 9) 3594 | -10/Subcaves | Core integrity fell below 50% 3639 | -10/Subcaves | Discovered new exit (range 8) 3684 | -10/Subcaves | Visited 4L-MR0's lab 3694 | -10/Subcaves | Found Meta Core 3695 | -10/Subcaves | Attached Meta Core, gained temporary slots: Propulsion, Utility, Weapon 3925 | -10/Subcaves | Visited Clippyterm 3926 | -10/Subcaves | Learned location of Extension (-4) 3926 | -10/Subcaves | Learned Factory garrison access intel 4002 | -10/Subcaves | Ambushed by angry Subdweller bent on revenge 4055 | -10/Subcaves | Shifting Twisted Machinery released Shrapnel Trap 4056 | -10/Subcaves | Shifting Twisted Machinery released Sub. Power Source 4062 | -10/Subcaves | A Subdweller sparked back to life 4145 | -10/Subcaves | A swath of the cavern ceiling suddenly collapsed 4280 | -10/Subcaves | Entered Materials 4282 | -8/Materials | Reached level 8 4298 | -8/Materials | Central database locked down 4330 | -8/Materials | Core integrity fell below 50% 4369 | -8/Materials | Upgraded with Weapon slot (x1) 4517 | -8/Materials | Reached level 9 4538 | -8/Materials | Discovered new exit (range 7) 4608 | -8/Materials | Self-destructed Last Messages --------------- 04589_ A-02 Transporter suffers critical hit (Burn). 04589_ Ion Engine melted. 04589_ A-02 Transporter destroyed. 04591_ T-07 Excavator is excavating. 04592_ Acquired 12 matter. 04593_ Electrolysis Chamber disabled. 04598_ System corrupted: Matter fused (-7). 04598_ S-10 Pest destroyed. 04598_ Switching to secondary target: S-10 Pest. 04600_ Destroyed Lgt. Ion Engine. 04600_ S-10 Pest destroyed. 04600_ Switching to secondary target: S-10 Pest. 04600_ S-10 Pest destroyed. 04603_ T-07 Excavator is excavating. 04603_ U-05 Engineer lays Concrete. 04604_ U-05 Engineer builds a Wall. 04605_ Acquired 18 matter. 04605_ Acquired 25 matter. 04605_ R-06 Scavenger collects Hrd. Medium Armor Plating. 04607_ Acquired Flight Unit. Map ----- +----------------------------------------------------+ | ? ??????????????????????#!#??????????????????????? | | # ??????????????????????#%#??????????????????????? | | #?????????????????????# #??????????????????????? | | #?????????????????????# #????#####?????????????? | | #?????????????????????# #????#"""#?????????????? | | # #?????????????????????# ######"T"#########?????? | | # #?????????????????????# #?????? | | # #?????????????????????# #?????? | | # #?????????????????????# """ """ """ #?????? | | # #?????????????????????# """ """ """ #?????? | | # #??????????????????#### """ """ """ #?????? | | # #########+########## #?????? | | #?????? | | w #?????? | | #?????? | | ## ########+#####???## ! ! #?????? | | ?# #???????????######## !%############T# +?????? | | ?# #???????????# # !=####????????## #?????? | | ## #???????????# """ # # #??????????? #?????? | | # #???????????# "" + #???????????? #?????? | | # #???????????#[ """ # # #????????????? ?????? | | + #???????????# # #?#?#########??? ????? | | # #???????????# !# #### ???? ???? | | # #???????????######## ^ #??????????##??? | | # #??????????????????# ^ #??????????????? | | ## #??????????????????#=%@ ^ #??????????????? | | ## #??????????????????+%%^ #??????????????? | | ## #??????????????????#^%=! #??????????????? | | ## #??????????????????# !^ #??????????????? | | ## #??????????????????# !! ]]] #??????????????? | | ## #??????????????????# ! ]] ???????????? | | ## #??????????????????# ]] ?????????? | | ## #??????????????????# ??????????? | | ## #??????????????????# ! ??????????? | | ## ###########????????######## ######??????????? | | ## # #???????????????? #???????????????? | | # #????????????????? #???????????????? | | + #????????????????? +???????????????? | | #### """ """ #?????????????????? #???????????????? | | %*## """ """ #???????????????????#???????????????? | | [%%# """ """ #???????????????????????????????????? | | ## #???????????????????????????????????? | | ## #???????????????????????????????????? | | ############???????????????????????????????????? | | #??????????????????????????????????????????????? | | !#??????????????????????????????????????????????? | | #??????????????????????????????????????????????? | | !#??????????????????????????????????????????????? | | ###??????????????????????????????????????????????? | | ?????????????????????????????????????????????????? | +----------------------------------------------------+ Best States ------------- Heat Dissipation 50 Energy Generation 17 Energy Capacity 180 Matter Stores 300 Matter Capacity 300 Sight Range 16 Terrain Scan Density 10 Evasion (%) 63 Targeting Accuracy 10 Recoil Reduction 2 Offensive Hacking 40 Defensive Hacking 10 Item Schematics ----------------- None Robot Schematics ------------------ None Fabricated ------------ Nothing Alien Tech Used ----------------- None Achievements -------------- None Challenges ------------ None RPGLIKE | -11 -10 -10 -10 -8 --------- Run | Yrd Mat Min Sub Mat Levels Raised 8 | . 5 . 1 2 XP Earned 15794 | 3000 7506 978 735 3575 XP Spent 13450 | 1100 8750 . 1700 1900 Upgrades 23 | 3 16 . 2 2 Propulsion Slot 2 | 1 . . 1 . Utility Slot 3 | . 3 . . . Weapon Slot 3 | 1 1 . . 1 Heat Dissipation 1 | . 1 . . . Mass Support 2 | 1 1 . . . Ranged Accuracy 6 | . 5 . 1 . Hack Attack % 4 | . 3 . . 1 Hack Defense % 2 | . 2 . . . Protomatter Created 1051 | . 585 148 184 134 Integrity Restored 2495 | . 1311 288 494 402 Core 2150 | . 1071 226 451 402 Parts 345 | . 240 62 43 . Protomatter Decayed 148 | . 81 50 17 . Game ------ Seed HeavyHelicalStatue Manual? 0 Play Time 01:28:58 Cumulative 124.2 hours Start 2024.08.07 @ 08:03:33 End 2024.08.07 @ 09:59:53 Sessions 4 Manual Loads 0 Difficulty Rogue Special Mode Winter2019/RPGLIKE Game No. 45 Rogue 44 Adventurer 1 Explorer 0 Win Type - Total 2 Types 2/0/0/0/0/0/0/0/0 Lore% 44 Gallery% 53 Achievement% 36 Wizard Run 0 Options --------- Layout 0 ASCII 0 Keyboard 0 Movement Vi Keybinds 0 Fullscreen 2 Font 18/Smallcaps Map View 76x50 Zoom Use 0% Tactical HUD 1 Map Filters NONE Filters NONE Steam 1 RUN: 7d17dab6-c427-4cca-95d7-50eef21a4b54